bitfinex/quotes_SOLUSD_20230116
["timestamp","ask_amount","ask_price","bid_price","bid_amount"]
[1673867541668,20.0,23.435,23.421,17.0]
[1673867541877,32.04,23.434,23.421,17.0]
[1673867542095,20.0,23.433,23.421,17.0]
[1673867542299,20.0,23.433,23.422,17.0]
[1673867542541,32.04,23.432,23.42,24.84]
[1673867542736,20.0,23.431,23.421,17.0]
[1673867542950,32.03,23.438,23.421,17.0]
[1673867543163,32.03,23.438,23.43,24.84]
[1673867543164,20.0,23.437,23.43,24.84]
[1673867543472,32.03,23.436,23.43,24.84]
[1673867543994,20.0,23.437,23.43,24.84]
[1673867544206,20.0,23.445,23.43,24.84]
[1673867544418,49.02,23.444,23.43,24.84]
[1673867544615,20.0,23.443,23.43,24.84]
[1673867544821,49.02,23.442,23.43,24.84]
[1673867546096,32.02,23.442,23.43,24.84]
[1673867546287,20.0,23.441,23.43,24.84]
[1673867546504,32.03,23.44,23.43,24.84]
[1673867546732,20.0,23.439,23.43,24.84]
[1673867547349,20.0,23.445,23.43,24.84]
[1673867547664,32.02,23.444,23.43,24.84]
[1673867548304,20.0,23.443,23.43,24.84]
[1673867548521,32.03,23.442,23.43,24.84]
[1673867548831,20.0,23.441,23.43,24.84]
[1673867549046,32.03,23.44,23.43,24.84]
[1673867549256,20.0,23.439,23.43,24.84]
[1673867549877,20.0,23.449,23.43,24.84]
[1673867550088,32.02,23.448,23.43,24.84]
[1673867550301,20.0,23.447,23.43,24.84]
[1673867550504,32.02,23.446,23.43,24.84]
[1673867550704,20.0,23.445,23.43,24.84]
[1673867550915,49.02,23.444,23.43,24.84]
[1673867551131,20.0,23.443,23.43,24.84]
[1673867551336,32.03,23.442,23.43,24.84]
[1673867551752,20.0,23.441,23.43,24.84]
[1673867551985,32.03,23.44,23.43,24.84]
[1673867552189,20.0,23.439,23.43,24.84]
[1673867552812,20.0,23.442,23.43,24.84]
[1673867553022,32.03,23.441,23.43,24.84]
[1673867553233,20.0,23.44,23.43,24.84]
[1673867553862,20.0,23.442,23.43,24.84]
[1673867554078,32.03,23.441,23.43,24.84]
[1673867554285,20.0,23.44,23.43,24.84]
[1673867554700,20.0,23.442,23.43,24.84]
[1673867554910,32.03,23.441,23.43,24.84]
[1673867555131,20.0,23.44,23.43,24.84]
[1673867555353,20.0,23.442,23.431,17.0]
[1673867555758,20.0,23.448,23.431,17.0]
[1673867556086,32.02,23.447,23.431,17.0]
[1673867556299,20.0,23.446,23.43,24.84]
[1673867556486,32.02,23.445,23.43,24.84]
[1673867556698,20.0,23.444,23.43,24.84]
[1673867556903,32.02,23.443,23.43,24.84]
[1673867557131,20.0,23.442,23.43,24.84]
[1673867557343,20.0,23.444,23.431,17.0]
[1673867557749,20.0,23.45,23.43,24.84]
[1673867557981,49.02,23.449,23.43,24.84]
[1673867558295,20.0,23.448,23.43,24.84]
[1673867558501,20.0,23.446,23.43,24.84]
[1673867558736,52.02,23.445,23.43,24.84]
[1673867559111,32.02,23.445,23.43,24.84]
[1673867559344,20.0,23.444,23.43,24.84]
[1673867559530,32.02,23.443,23.43,24.84]
[1673867559740,20.0,23.442,23.43,24.84]
[1673867559976,32.03,23.441,23.43,24.84]
[1673867560192,20.0,23.44,23.43,24.84]
[1673867560931,20.0,23.449,23.43,24.84]
[1673867561114,49.02,23.448,23.43,24.84]
[1673867561328,20.0,23.447,23.43,24.84]
[1673867561549,49.02,23.446,23.43,24.84]
[1673867561768,20.0,23.445,23.43,24.84]
[1673867561975,49.02,23.444,23.43,24.84]
[1673867562173,20.0,23.443,23.43,24.84]
[1673867562383,32.03,23.442,23.43,24.84]
[1673867562604,20.0,23.441,23.43,24.84]
[1673867562823,32.03,23.44,23.422,115.8842]
[1673867563015,20.0,23.439,23.422,115.8842]
[1673867563226,49.03,23.438,23.422,115.8842]
[1673867563552,20.0,23.437,23.422,115.8842]
[1673867563744,49.03,23.436,23.422,115.8842]
[1673867565011,49.03,23.436,23.42,24.84]
[1673867565222,20.0,23.434,23.413,110.6888]
[1673867565440,69.04,23.433,23.413,110.6888]
[1673867565653,110.48857569,23.433,23.413,110.6888]
[1673867566186,41.44857569,23.432,23.41,24.86]
[1673867566393,69.04,23.431,23.411,20.0]
[1673867566583,52.04,23.431,23.412,17.0]
[1673867566914,17.0,23.43,23.411,20.0]
[1673867567124,52.04,23.429,23.411,20.0]
[1673867568177,52.04,23.429,23.412,17.0]
[1673867568817,20.0,23.429,23.42,24.84]
[1673867568995,20.0,23.432,23.42,24.84]
[1673867569205,52.03,23.437,23.42,24.84]
[1673867569967,17.0,23.436,23.42,24.84]
[1673867570174,52.03,23.435,23.42,24.84]
[1673867570796,17.0,23.434,23.42,24.84]
[1673867571110,52.04,23.433,23.42,24.84]
[1673867571644,32.04,23.433,23.42,24.84]
[1673867571961,32.03,23.437,23.42,24.84]
[1673867572154,17.0,23.436,23.42,24.84]
[1673867572366,32.03,23.435,23.42,24.84]
[1673867575854,20.0,23.434,23.42,24.84]
[1673867576064,32.04,23.433,23.42,24.84]
[1673867576275,20.0,23.432,23.42,24.84]
[1673867576597,49.04,23.431,23.413,119.9284]
[1673867576918,20.0,23.43,23.413,119.9284]
[1673867577130,49.04,23.429,23.413,119.9284]
[1673867577319,20.0,23.428,23.413,119.9284]
[1673867577528,49.05,23.427,23.413,119.9284]
[1673867577740,32.05,23.427,23.413,119.9284]
[1673867577949,32.04,23.429,23.413,119.9284]
[1673867578174,20.0,23.428,23.413,119.9284]
[1673867578386,49.05,23.427,23.413,119.9284]
[1673867581222,32.05,23.427,23.413,119.9284]
[1673867581650,20.0,23.428,23.413,119.9284]
[1673867581965,20.0,23.436,23.413,119.9284]
[1673867582172,32.03,23.435,23.413,119.9284]
[1673867582487,20.0,23.434,23.413,119.9284]
[1673867582684,32.04,23.433,23.413,119.9284]
[1673867582896,20.0,23.432,23.413,119.9284]
[1673867583209,49.04,23.431,23.413,119.9284]
[1673867583427,20.0,23.43,23.413,119.9284]
[1673867583625,49.04,23.429,23.413,119.9284]
[1673867583828,20.0,23.428,23.413,119.9284]
[1673867584885,20.0,23.428,23.414,17.0]
[1673867585094,52.04,23.434,23.415,20.0]
[1673867585960,17.0,23.433,23.415,20.0]
[1673867586146,118.0813,23.44,23.42,24.87]
[1673867586359,20.0,23.439,23.421,17.0]
[1673867586785,52.03,23.439,23.421,17.0]
[1673867586996,20.0,23.439,23.43,24.87]
[1673867587216,112.851,23.453,23.43,24.87]
[1673867587623,32.01,23.451,23.43,24.87]
[1673867588556,37.0,23.45,23.43,24.87]
[1673867588789,32.02,23.449,23.43,24.87]
[1673867589107,17.0,23.448,23.43,24.87]
[1673867589430,32.02,23.447,23.43,24.87]
[1673867589615,17.0,23.446,23.43,24.87]
[1673867592371,32.01,23.451,23.43,24.87]
[1673867592680,37.0,23.45,23.43,24.87]
[1673867592891,32.02,23.449,23.43,24.87]
[1673867593083,37.0,23.448,23.43,24.87]
[1673867593294,32.02,23.447,23.43,24.87]
[1673867593503,17.0,23.446,23.43,24.87]
[1673867593938,17.0,23.447,23.43,24.87]
[1673867595296,52.02,23.446,23.43,24.87]
[1673867595502,17.0,23.445,23.43,24.61]
[1673867595713,52.02,23.444,23.43,24.61]
[1673867595948,17.0,23.443,23.43,24.61]
[1673867596261,52.03,23.442,23.43,24.61]
[1673867596444,17.0,23.441,23.43,24.61]
[1673867596654,20.0,23.44,23.43,24.61]
[1673867598153,17.0,23.439,23.43,24.61]
[1673867598335,20.0,23.438,23.43,24.61]
[1673867598553,32.02,23.446,23.43,24.61]
[1673867598875,17.0,23.445,23.43,24.61]
[1673867599077,32.02,23.444,23.43,24.61]
[1673867599279,17.0,23.443,23.43,24.61]
[1673867599915,17.0,23.445,23.43,24.61]
[1673867600240,32.02,23.444,23.43,24.61]
[1673867600450,17.0,23.443,23.43,24.61]
[1673867600653,32.03,23.442,23.43,24.61]
[1673867602654,32.02,23.446,23.43,24.61]
[1673867602865,17.0,23.445,23.43,24.61]
[1673867603080,32.02,23.444,23.43,24.61]
[1673867603289,41.92801,23.443,23.42,24.69]
[1673867603502,36.95801,23.442,23.42,24.69]
[1673867603697,41.92801,23.441,23.41,24.83]
[1673867603914,20.0,23.439,23.41,134.7555]
[1673867604237,73.95801,23.438,23.41,134.7555]
[1673867604557,20.0,23.436,23.41,134.7555]
[1673867604764,20.0,23.434,23.41,134.7555]
[1673867604979,52.04,23.433,23.41,134.7555]
[1673867605173,17.0,23.432,23.41,134.7555]
[1673867605376,52.04,23.431,23.41,134.7555]
[1673867605583,17.0,23.43,23.41,134.7555]
[1673867605798,52.04,23.429,23.41,134.7555]
[1673867606032,17.0,23.428,23.41,134.7555]
[1673867606245,52.05,23.427,23.41,134.7555]
[1673867609507,20.0,23.427,23.41,134.7555]
[1673867609725,20.0,23.432,23.41,134.7555]
[1673867609937,49.04,23.431,23.41,134.7555]
[1673867610151,20.0,23.43,23.41,134.7555]
[1673867610458,32.04,23.429,23.41,134.7555]
[1673867610875,20.0,23.428,23.41,134.7555]
[1673867611086,32.05,23.427,23.41,134.7555]
[1673867614149,20.0,23.428,23.41,134.7555]
[1673867614465,37.5265048,23.436,23.41,134.7555]
[1673867614466,20.0,23.43,23.414,20.0]
[1673867614659,20.0,23.435,23.415,17.0]
[1673867614858,32.04,23.434,23.415,17.0]
[1673867615064,20.0,23.433,23.415,17.0]
[1673867615287,32.04,23.432,23.415,17.0]
[1673867615494,20.0,23.431,23.415,17.0]
[1673867615720,32.04,23.43,23.415,17.0]
[1673867615929,20.0,23.429,23.414,20.0]
[1673867616242,20.0,23.429,23.415,17.0]
[1673867616646,20.0,23.434,23.415,17.0]
[1673867616859,32.03,23.44,23.42,24.74]
[1673867617074,17.0,23.439,23.42,24.74]
[1673867617300,52.03,23.438,23.42,24.74]
[1673867617483,17.0,23.437,23.42,24.74]
[1673867618350,52.03,23.438,23.42,24.74]
[1673867618891,32.03,23.438,23.42,24.74]
[1673867619204,32.03,23.441,23.42,24.74]
[1673867619730,17.0,23.44,23.42,24.74]
[1673867619939,32.03,23.439,23.42,24.74]
[1673867620151,37.0,23.438,23.42,24.74]
[1673867620365,32.03,23.437,23.42,24.74]
[1673867620763,37.0,23.438,23.42,24.74]
[1673867622456,32.03,23.437,23.42,24.74]
[1673867622670,37.0,23.438,23.42,24.74]
[1673867622885,32.03,23.437,23.42,24.74]
[1673867623199,17.0,23.436,23.42,24.74]
[1673867623517,32.03,23.435,23.42,24.74]
[1673867623708,17.0,23.436,23.42,24.74]
[1673867624669,20.0,23.434,23.42,24.74]
[1673867624986,49.04,23.433,23.42,24.74]
[1673867625179,20.0,23.432,23.42,24.74]
[1673867625396,49.04,23.431,23.42,24.74]
[1673867625708,20.0,23.43,23.42,24.74]
[1673867625908,49.04,23.429,23.42,24.74]
[1673867626118,20.0,23.428,23.42,24.74]
[1673867626326,17.0,23.427,23.42,24.74]
[1673867626556,17.0,23.427,23.41,134.6655]
[1673867627380,20.0,23.428,23.41,134.6655]
[1673867627610,20.0,23.434,23.415,20.0]
[1673867627816,49.04,23.433,23.415,20.0]
[1673867628025,20.0,23.432,23.415,20.0]
[1673867628236,32.04,23.431,23.42,24.74]
[1673867628449,20.0,23.43,23.42,24.74]
[1673867628659,20.0,23.432,23.42,24.74]
[1673867629102,20.0,23.434,23.42,24.74]
[1673867629409,49.04,23.433,23.42,24.74]
[1673867629596,32.04,23.433,23.42,24.74]
[1673867629807,32.03,23.435,23.42,24.74]
[1673867630017,32.03,23.441,23.42,24.74]
[1673867630241,20.0,23.44,23.42,24.74]
[1673867630433,32.03,23.439,23.42,24.74]
[1673867630655,20.0,23.438,23.42,24.74]
[1673867630871,32.03,23.437,23.42,24.74]
[1673867631285,20.0,23.44,23.42,24.74]
[1673867631494,32.03,23.439,23.42,24.74]
[1673867631715,17.0,23.438,23.42,24.74]
[1673867631942,32.03,23.437,23.42,24.74]
[1673867632118,17.0,23.436,23.42,24.74]
[1673867632331,17.0,23.438,23.42,24.74]
[1673867632541,32.03,23.437,23.42,24.74]
[1673867635189,32.03,23.441,23.421,20.0]
[1673867635380,32.03,23.441,23.43,24.74]
[1673867635590,20.0,23.44,23.43,24.74]
[1673867636231,52.02,23.445,23.43,24.74]
[1673867636438,20.0,23.443,23.43,24.74]
[1673867636650,52.03,23.442,23.43,24.74]
[1673867636979,17.0,23.441,23.43,24.74]
[1673867637301,52.03,23.44,23.43,24.74]
[1673867637605,17.0,23.439,23.43,24.74]
[1673867637809,20.0,23.438,23.43,24.74]
[1673867638022,17.0,23.437,23.43,24.74]
[1673867638451,17.0,23.439,23.43,24.74]
[1673867638651,20.0,23.438,23.43,24.74]
[1673867638850,17.0,23.437,23.43,24.74]
[1673867639061,20.0,23.438,23.43,24.74]
[1673867639277,20.0,23.441,23.43,24.74]
[1673867639477,32.03,23.44,23.43,24.74]
[1673867639693,20.0,23.439,23.43,24.74]
[1673867640344,20.0,23.441,23.43,24.74]
[1673867641076,32.02,23.447,23.43,24.74]
[1673867641262,17.0,23.446,23.43,24.74]
[1673867641468,32.02,23.445,23.43,24.74]
[1673867641913,32.02,23.448,23.43,24.74]
[1673867642228,20.0,23.447,23.43,24.74]
[1673867642543,32.02,23.446,23.43,24.74]
[1673867643369,20.0,23.447,23.43,24.74]
[1673867643582,17.0,23.446,23.43,24.74]
[1673867643932,49.02,23.447,23.43,24.74]
[1673867644121,32.02,23.447,23.431,17.0]
[1673867644436,32.02,23.447,23.43,24.74]
[1673867645794,17.0,23.446,23.43,24.74]
[1673867647170,32.02,23.445,23.43,24.74]
[1673867647476,17.0,23.444,23.43,24.74]
[1673867647700,32.02,23.447,23.43,24.74]
[1673867647882,17.0,23.446,23.43,24.74]
[1673867648202,32.02,23.445,23.43,24.74]
[1673867649260,37.0,23.444,23.43,24.74]
[1673867649477,32.02,23.443,23.421,110.4769]
[1673867649674,20.0,23.442,23.421,110.4769]
[1673867649886,53.95801,23.441,23.42,24.74]
[1673867650211,24.92801,23.44,23.42,24.74]
[1673867650411,73.95801,23.439,23.42,24.74]
[1673867650628,24.92801,23.438,23.42,24.74]
[1673867650831,49.03,23.437,23.42,24.74]
[1673867651046,70.49196354,23.437,23.42,24.74]
[1673867651888,49.03,23.437,23.42,24.74]
[1673867653771,20.0,23.436,23.412,108.1724]
[1673867653997,20.0,23.434,23.412,108.1724]
[1673867654193,69.04,23.433,23.412,108.1724]
[1673867654402,24.92801,23.432,23.412,108.1724]
[1673867654604,69.04,23.431,23.412,108.1724]
[1673867655972,20.0,23.43,23.412,108.1724]
[1673867656193,69.04,23.429,23.412,108.1724]
[1673867656398,20.0,23.428,23.412,108.1724]
[1673867656608,69.05,23.427,23.412,108.1724]
[1673867657467,69.05,23.427,23.41,24.87]
[1673867657660,90.51196354,23.427,23.403,112.8024]
[1673867658085,4.92801,23.426,23.403,112.8024]
[1673867658299,49.05,23.425,23.403,112.8024]
[1673867658504,20.0,23.424,23.403,112.8024]
[1673867658728,49.05,23.423,23.403,112.8024]
[1673867658947,20.0,23.422,23.41,24.72]
[1673867659248,32.04,23.429,23.41,24.72]
[1673867659462,20.0,23.428,23.41,24.72]
[1673867659656,32.05,23.427,23.41,24.72]
[1673867661789,17.0,23.426,23.41,24.72]
[1673867663556,17.0,23.427,23.41,24.72]
[1673867664098,32.05,23.426,23.41,24.72]
[1673867664411,49.05,23.427,23.41,24.72]
[1673867666187,17.0,23.427,23.41,24.72]
[1673867666707,49.05,23.427,23.41,24.72]
[1673867667866,32.05,23.427,23.411,17.0]
[1673867668077,32.05,23.427,23.412,20.0]
[1673867668290,20.0,23.428,23.413,17.0]
[1673867668606,20.0,23.434,23.413,17.0]
[1673867668810,32.04,23.433,23.414,20.0]
[1673867669023,20.0,23.432,23.414,20.0]
[1673867669236,32.04,23.431,23.414,20.0]
[1673867669455,20.0,23.43,23.414,20.0]
[1673867670077,20.0,23.434,23.42,24.72]
[1673867670304,32.04,23.433,23.42,24.72]
[1673867670490,20.0,23.432,23.42,24.72]
[1673867670704,32.04,23.431,23.42,24.72]
[1673867670913,20.0,23.43,23.42,24.72]
[1673867671655,20.0,23.434,23.42,24.72]
[1673867671859,32.04,23.433,23.42,24.72]
[1673867672402,117.7848,23.44,23.42,24.72]
[1673867672403,32.03,23.436,23.42,24.72]
[1673867672601,32.03,23.439,23.42,24.72]
[1673867672814,20.0,23.438,23.42,24.72]
[1673867673023,32.03,23.437,23.42,24.72]
[1673867674397,20.0,23.438,23.422,20.0]
[1673867674605,20.0,23.439,23.422,20.0]
[1673867674803,53.49196354,23.438,23.42,24.72]
[1673867675018,20.0,23.437,23.42,24.72]
[1673867675220,32.03,23.436,23.42,24.85]
[1673867675747,20.0,23.435,23.42,24.85]
[1673867675957,20.0,23.433,23.413,225.3747]
[1673867676185,56.96801,23.432,23.413,225.3747]
[1673867676371,17.0,23.431,23.413,225.3747]
[1673867676587,52.04,23.43,23.413,225.3747]
[1673867676910,37.0,23.429,23.413,225.3747]
[1673867677121,52.04,23.428,23.413,225.3747]
[1673867677434,17.0,23.427,23.413,225.3747]
[1673867677641,32.05,23.426,23.413,225.3747]
[1673867678063,32.05,23.427,23.414,20.0]
[1673867679857,20.0,23.428,23.414,20.0]
[1673867680073,20.0,23.43,23.414,20.0]
[1673867680398,49.04,23.429,23.414,20.0]
[1673867680586,20.0,23.428,23.414,20.0]
[1673867680799,17.0,23.427,23.414,20.0]
[1673867681654,17.0,23.427,23.413,225.3747]
[1673867681971,21.46196354,23.426,23.4,136.1481]
[1673867682282,56.97801,23.425,23.4,136.1481]
[1673867682475,4.92801,23.424,23.4,136.1481]
[1673867682684,32.05,23.423,23.4,136.1481]
[1673867682902,37.0,23.422,23.4,136.1481]
[1673867683100,32.05,23.421,23.4,136.1481]
[1673867683310,37.0,23.42,23.4,136.1481]
[1673867683750,37.0,23.42,23.402,17.0]
[1673867683967,37.0,23.42,23.403,20.0]
[1673867686266,20.0,23.42,23.403,20.0]
[1673867686584,20.0,23.422,23.403,20.0]
[1673867686803,49.05,23.421,23.403,20.0]
[1673867686995,20.0,23.42,23.403,20.0]
[1673867687200,32.05,23.425,23.41,24.87]
[1673867687423,32.04,23.43,23.411,17.0]
[1673867687625,32.03,23.436,23.411,17.0]
[1673867687844,32.03,23.436,23.412,20.0]
[1673867688484,20.0,23.435,23.42,24.87]
[1673867688693,32.04,23.434,23.42,24.87]
[1673867688908,20.0,23.433,23.42,24.87]
[1673867689230,32.04,23.432,23.42,24.87]
[1673867689542,20.0,23.431,23.42,24.87]
[1673867690271,32.03,23.436,23.42,24.87]
[1673867690468,32.03,23.442,23.43,24.84]
[1673867690677,20.0,23.441,23.43,24.84]
[1673867691013,32.03,23.44,23.43,24.84]
[1673867691220,20.0,23.439,23.43,24.84]
[1673867691957,20.0,23.448,23.43,24.84]
[1673867692157,49.02,23.447,23.43,24.84]
[1673867692478,20.0,23.446,23.43,24.84]
[1673867692673,49.02,23.445,23.43,24.84]
[1673867692884,20.0,23.444,23.43,24.84]
[1673867693102,49.02,23.443,23.43,24.84]
[1673867693441,20.0,23.442,23.43,24.84]
[1673867693621,17.0,23.441,23.43,24.84]
[1673867693833,20.0,23.44,23.43,24.84]
[1673867694038,52.03,23.44,23.43,24.84]
[1673867694374,17.0,23.439,23.43,24.84]
[1673867694593,20.0,23.438,23.43,24.84]
[1673867694900,49.03,23.437,23.421,20.0]
[1673867699204,20.0,23.438,23.43,24.84]
[1673867699405,20.0,23.441,23.43,24.84]
[1673867699615,20.0,23.446,23.43,24.84]
[1673867699833,32.02,23.445,23.43,24.84]
[1673867700153,20.0,23.444,23.43,24.84]
[1673867700339,49.02,23.443,23.43,24.84]
[1673867700545,20.0,23.442,23.43,24.84]
[1673867700766,32.02,23.443,23.43,24.84]
[1673867700978,32.02,23.448,23.43,24.72616571]
[1673867701404,41.46196354,23.447,23.43,24.72616571]
[1673867701626,32.02,23.446,23.43,24.72616571]
[1673867701828,53.48196354,23.446,23.43,24.72616571]
[1673867702040,21.46196354,23.445,23.43,24.72616571]
[1673867702249,69.02,23.444,23.43,24.72616571]
[1673867702776,21.46196354,23.443,23.43,24.72616571]
[1673867702989,69.03,23.442,23.43,24.72616571]
[1673867703178,32.01,23.45,23.43,24.72616571]
[1673867703390,21.46196354,23.448,23.43,24.72616571]
[1673867703615,52.02,23.447,23.43,24.72616571]
[1673867705086,20.0,23.447,23.431,17.0]
[1673867705294,32.01,23.45,23.431,17.0]
[1673867705295,20.0,23.449,23.431,17.0]
[1673867705700,41.46196354,23.449,23.431,17.0]
[1673867706134,41.46196354,23.449,23.44,24.77]
[1673867706355,32.0,23.457,23.44,24.77]
[1673867706551,21.46196354,23.454,23.44,24.77]
[1673867706761,32.01,23.453,23.44,24.77]
[1673867707185,20.0,23.452,23.44,24.77]
[1673867707704,21.46196354,23.451,23.44,24.77]
[1673867707916,20.0,23.45,23.44,24.77]
[1673867708125,32.01,23.45,23.44,24.77]
[1673867708337,21.46196354,23.451,23.44,24.77]
[1673867708557,20.0,23.45,23.44,24.77]
[1673867712430,32.0,23.46,23.44,24.77]
[1673867712640,21.46196354,23.456,23.44,24.77]
[1673867712978,21.46196354,23.456,23.432,20.0]
[1673867712979,49.01,23.455,23.43,24.87]
[1673867713173,20.0,23.453,23.43,24.87]
[1673867713385,49.01,23.452,23.43,24.87]
[1673867713610,20.0,23.451,23.43,24.87]
[1673867713814,49.01,23.45,23.43,24.87]
[1673867714009,20.0,23.449,23.43,24.87]
[1673867714342,49.02,23.448,23.43,24.87]
[1673867714551,20.0,23.447,23.43,24.87]
[1673867714754,32.02,23.446,23.43,24.87]
[1673867714963,17.0,23.445,23.42,24.87]
[1673867715320,52.02,23.444,23.42,24.87]
[1673867715619,21.92801,23.443,23.42,24.87]
[1673867715811,76.95801,23.442,23.42,24.87]
[1673867716027,21.92801,23.441,23.42,24.87]
[1673867716233,52.03,23.44,23.42,24.87]
[1673867716450,37.0,23.439,23.42,24.87]
[1673867716648,52.03,23.438,23.42,24.87]
[1673867716861,37.0,23.437,23.42,24.87]
[1673867717072,52.03,23.436,23.42,24.87]
[1673867717296,17.0,23.435,23.42,24.87]
[1673867717502,52.04,23.434,23.42,24.87]
[1673867717819,17.0,23.433,23.42,24.87]
[1673867718034,52.04,23.432,23.42,24.87]
[1673867718254,17.0,23.431,23.42,24.87]
[1673867718442,52.04,23.43,23.417,118.7002]
[1673867718669,17.0,23.429,23.417,118.7002]
[1673867718859,32.04,23.428,23.417,118.7002]
[1673867719066,20.0,23.427,23.417,118.7002]
[1673867719510,17.0,23.426,23.417,118.7002]
[1673867719698,17.0,23.426,23.41,24.87]
[1673867722218,32.05,23.425,23.41,24.84]
[1673867722435,17.0,23.424,23.41,24.84]
[1673867722879,32.05,23.423,23.41,24.84]
[1673867723063,17.0,23.422,23.41,24.84]
[1673867723280,52.05,23.421,23.41,24.84]
[1673867724117,43.84886402,23.43,23.41,24.84]
[1673867724453,21.46196354,23.429,23.41,24.84]
[1673867724846,32.04,23.428,23.41,24.84]
[1673867725290,21.46196354,23.429,23.41,24.84]
[1673867725497,21.46196354,23.429,23.411,17.0]
[1673867725699,20.0,23.428,23.41,24.84]
[1673867725896,32.05,23.427,23.41,24.84]
[1673867726444,17.0,23.426,23.41,24.84]
[1673867726640,32.05,23.425,23.41,24.84]
[1673867726851,17.0,23.424,23.41,24.84]
[1673867727271,41.46196354,23.423,23.407,109.4916]
[1673867727476,20.0,23.421,23.407,109.4916]
[1673867727689,52.06,23.42,23.407,109.4916]
[1673867727911,17.0,23.419,23.407,109.4916]
[1673867728230,52.06,23.418,23.407,109.4916]
[1673867728419,17.0,23.417,23.407,109.4916]
[1673867728634,32.06,23.416,23.407,109.4916]
[1673867728969,20.0,23.418,23.4,112.5372]
[1673867729176,21.46196354,23.426,23.402,20.0]
[1673867729372,49.05,23.425,23.403,17.0]
[1673867730323,49.05,23.425,23.41,24.87]
[1673867731365,32.05,23.425,23.41,24.87]
[1673867732018,21.46196354,23.428,23.41,24.87]
[1673867732224,52.05,23.427,23.41,24.87]
[1673867733379,17.0,23.426,23.41,24.87]
[1673867733589,32.05,23.425,23.41,24.87]
[1673867734943,32.05,23.426,23.41,24.87]
[1673867737252,17.0,23.425,23.41,24.87]
[1673867738010,32.05,23.424,23.41,24.87]